Cogmind - Beta 13 *** ADVENTURER MODE // 2024.04.23 @ 20:17:52 Player: Roxy Result: Self-destructed Performance ------------- Evolutions (2) 1000 Regions Visited (3) 600 Robots Destroyed (24) 120 Value Destroyed (606) 606 Prototype IDs (1) 20 Alien Tech Used (0) 0 Bonus (0) 0 TOTAL SCORE: 2346 Bonus ------- None Cogmind --------- Core Integrity 244/550 Matter 300/300 Energy 100/100 System Corruption 0% Temperature Cool (0) Movement Core (350) Ox6 Location -8/Materials Parts ------- > --- POWER (1) -------- (None) > --- PROPULSION (4) --- (None) > --- UTILITY (4) ------ Large Storage Unit Signal Interpreter > --- WEAPON (2) ------- (None) > --- INVENTORY (15) --- Heat Sink Improved Heat Sink Peak State ------------ > --- POWER ------------ Improved Ion Engine > --- PROPULSION ------- Aluminum Leg Aluminum Leg Aluminum Leg Aluminum Leg > --- UTILITY ---------- Large Storage Unit Sensor Array Signal Interpreter > --- WEAPON ----------- Light Assault Rifle Improved Assault Rifle > --- INVENTORY -------- Light Ion Engine Aluminum Leg Aluminum Leg Heat Sink Improved Heat Sink Small Laser [Rating: 13] Favorites ----------- Power Improved Ion Engine Engine Improved Ion Engine Propulsion Aluminum Leg Leg Aluminum Leg Utility Large Storage Unit Device Sensor Array Storage Large Storage Unit Processor Signal Interpreter Weapon Light Assault Rifle Energy Gun Small Laser Ballistic Gun Light Assault Rifle Build | -11 -10 -9 -8 ------- Run | Yrd Mat Mat Mat Slots Evolved 4 | . . 2 2 Power . | . . . . Propulsion 2 | . . 2 . Utility 2 | . . . 2 Weapon . | . . . . Parts Attached 24 | 4 4 6 10 Power 4 | 1 . 1 2 Engine 4 | 1 . 1 2 Core . | . . . . Reactor . | . . . . Propulsion 10 | 2 . 4 4 Treads . | . . . . Leg 10 | 2 . 4 4 Wheel . | . . . . Hover . | . . . . Flight . | . . . . Utility 4 | 1 2 . 1 Device 1 | . 1 . . Storage 2 | 1 1 . . Processor 1 | . . . 1 Hackware . | . . . . Protection . | . . . . Artifact . | . . . . Weapon 6 | . 2 1 3 Energy Gun 1 | . . . 1 Energy Cannon . | . . . . Ballistic Gun 5 | . 2 1 2 Ballistic Cannon . | . . . . Launcher . | . . . . Special Weapon . | . . . . Impact Weapon . | . . . . Slashing Weapon . | . . . . Piercing Weapon . | . . . . Special Melee Weapon . | . . . . Unidentified Prototypes 1 | . . 1 . Parts Lost 16 | . . 4 12 Power 3 | . . 1 2 Propulsion 8 | . . 2 6 Utility 1 | . . . 1 Weapon 4 | . . 1 3 Highest Loss Streak 11 | . . 2 11 To Critical Strikes . | . . . . Average Slot Usage (%) 78 | . 88 77 65 Engine 10 | . 14 10 7 Leg 24 | . 28 22 23 Device 8 | . 3 11 7 Storage 11 | . 14 11 9 Processor 1 | . . . 9 Ballistic Gun 21 | . 28 22 8 Naked Turns . | . . . . Heaviest Build 32 | 8 27 32 32 Greatest Support 40 | 20 20 40 40 Greatest Overweight (x) 6 | 2 1 3 6 Average Overweight (x) . | . . . . Largest Inventory Capacity 15 | 8 15 15 15 Average Capacity 13 | 7 9 15 15 Most Carried 11 | 4 6 10 11 Average Carried 4 | 2 3 4 5 Final Capacity 15 | 8 15 15 15 Final Carried 7 | 4 4 7 2 Class Distribution -------------------- 92% | Mutant 7% | Scavenger-Mutant Dominant Class ---------------- Mutant | -10/Materials Mutant | -9/Materials Mutant | -8/Materials Resources | -11 -10 -9 -8 ----------- Run | Yrd Mat Mat Mat Matter Collected 654 | 200 163 180 111 Remotely . | . . . . Salvage Created 772 | . 170 436 166 Parts 50 | . 16 29 5 Haulers Intercepted . | . . . . Recyclers Shooed 1 | . . 1 . Parts Field Recycled . | . . . . Retrieved Matter . | . . . . Parts Self-Destructed . | . . . . Prevented . | . . . . Kills | -11 -10 -9 -8 ------- Run | Yrd Mat Mat Mat Combat Hostiles Destroyed 20 | . 10 7 3 Guns 20 | . 10 7 3 Classes Destroyed 5 | . 3 2 . Recycler 1 | . . 1 . Watcher 3 | . 1 2 . Swarmer 9 | . 9 . . Grunt 8 | . 1 4 3 Sentry 3 | . . 3 . Best Kill Streak 5 | . 3 5 2 Combat Bots Only 3 | . 3 3 2 Max Kills in Single Turn 2 | . 2 1 2 Gunslinging 1 | . 1 . 1 Exploded . | . . . . Melee . | . . . . Uniques/NPCs Destroyed . | . . . . Combat | -11 -10 -9 -8 -------- Run | Yrd Mat Mat Mat Hostile Shots Fired 226 | . 40 74 112 Missed 55 | . 7 23 25 Damage Taken 1818 | . 207 537 1074 Core 442 | . 65 71 306 Absorbed by Shields . | . . . . Ignored by Resistances 539 | . 68 161 310 Core Remaining (%) 85 | 100 74 82 . Volleys Fired 83 | . 23 34 26 Largest 2 | . 2 2 2 Hottest 63 | . 40 43 63 Shots Fired 152 | . 46 68 38 Gun 152 | . 46 68 38 Cannon . | . . . . Launcher . | . . . . Special . | . . . . Kinetic 141 | . 46 68 27 Thermal 11 | . . . 11 Explosive . | . . . . Electromagnetic . | . . . . Robot Hit Streak 23 | . 7 12 23 Robot Miss Streak 3 | . 2 3 1 Penetration Max . | . . . . Secondary Targets 7 | . 3 3 1 Max Gunslinging Chain 1 | . 1 1 1 Shots Hit Robots 122 | . 33 53 36 Core Hits 53 | . 15 23 15 Critical Kills . | . . . . Critical Parts Destroyed 1 | . 1 . . Critical Strikes 2 | . 1 1 . Destroy 2 | . 1 1 . Melee Attacks . | . . . . Impact . | . . . . Slashing . | . . . . Piercing . | . . . . Sneak Attacks . | . . . . Combat Hostiles . | . . . . Follow-up Attacks . | . . . . Damage Inflicted 1366 | . 346 584 436 Guns 1359 | . 346 584 429 Cannons . | . . . . Explosions . | . . . . Melee . | . . . . Ramming 7 | . . . 7 Kinetic 1249 | . 346 584 319 Thermal 110 | . . . 110 Explosive . | . . . . Electromagnetic . | . . . . Impact . | . . . . Slashing . | . . . . Piercing . | . . . . Highest Corruption . | . . . . Average Corruption . | . . . . Corruption Purged . | . . . . Corruption Blocked . | . . . . Overload Shots . | . . . . Overflow Damage . | . . . . Projectiles . | . . . . Explosions . | . . . . Melee . | . . . . Knockbacks 1 | . . . 1 Impact 1 | . . . 1 Kinetic . | . . . . Secondary . | . . . . Self-Inflicted Damage . | . . . . Shots . | . . . . Rammed . | . . . . Targets Rammed 4 | . . 1 3 Kicked 4 | . . 1 3 Crushed . | . . . . Highest Temperature 35 | . . 35 31 Average Temperature 12 | . . 11 12 Received Heat Transfer 1077 | . 12 309 756 Siege Activations . | . . . . Robots Corrupted . | . . . . Combat Hostiles . | . . . . Parts Fried . | . . . . Impact Corruptions . | . . . . Robots Melted . | . . . . Combat Hostiles . | . . . . Parts Melted . | . . . . Heat Transferred 250 | . . . 250 Parts Sabotaged . | . . . . Parts Stolen . | . . . . Parts Stripped . | . . . . Power Chain Reactions . | . . . . Alert | -11 -10 -9 -8 ------- Run | Yrd Mat Mat Mat Peak Influence 290 | . 267 290 80 Initial 96 | . . 96 50 Average 135 | . 117 176 54 Maximum Alert Level 1 | . 1 1 . Low Security (%) 72 | 100 80 58 100 Level 1 27 | . 19 41 . Level 2 . | . . . . Level 3 . | . . . . Level 4 . | . . . . Level 5 . | . . . . High Security . | . . . . Max Security . | . . . . Squads Dispatched 1 | . . 1 . Investigation . | . . . . Extermination . | . . . . Reinforcement 1 | . . 1 . Assault . | . . . . Garrison . | . . . . Intercept . | . . . . Searches Triggered . | . . . . Construction Impeded . | . . . . Haulers Reinforced . | . . . . Active Scanning Responses . | . . . . Cargo Convoy Interrupts . | . . . . Stealth | -11 -10 -9 -8 --------- Run | Yrd Mat Mat Mat Distress Signals 4 | . 3 1 . Communications Jammed . | . . . . Distress Signals . | . . . . Times Spotted 33 | . 11 16 6 Peak Tracking Total 4 | . 4 4 3 Tactical Retreats . | . . . . Traps | -11 -10 -9 -8 ------- Run | Yrd Mat Mat Mat Traps Triggered 5 | . 1 2 2 Indirectly . | . . . . Trap Hack Attempts . | . . . . Triggered . | . . . . Disarmed . | . . . . Reprogrammed . | . . . . Reused . | . . . . Traps Extracted . | . . . . Installed . | . . . . Triggered . | . . . . Machines | -11 -10 -9 -8 ---------- Run | Yrd Mat Mat Mat Machines Disabled . | . . . . Max in Single Turn . | . . . . Machines Repaired . | . . . . Machines Dismantled . | . . . . Machines Sabotaged . | . . . . Overloaded Fab Kills . | . . . . Hacking | -11 -10 -9 -8 --------- Run | Yrd Mat Mat Mat Machines Accessed 1 | . . 1 . Terminals 1 | . . 1 . Fabricators . | . . . . Repair Stations . | . . . . Recycling Units . | . . . . Scanalyzers . | . . . . Garrison Access . | . . . . Total Hacks 3 | . . 3 . Successful . | . . . . Failed 3 | . . 3 . Catastrophic . | . . . . Database Lockouts . | . . . . Manual . | . . . . Terminals 3 | . . 3 . Fabricators . | . . . . Repair Stations . | . . . . Recycling Units . | . . . . Scanalyzers . | . . . . Garrison Access . | . . . . Terminal Hacks . | . . . . Fabricator Hacks . | . . . . Repair Station Hacks . | . . . . Recycling Unit Hacks . | . . . . Scanalyzer . | . . . . Garrison Access Hacks . | . . . . Unauthorized Hacks . | . . . . Terminals . | . . . . Fabricators . | . . . . Repair Stations . | . . . . Recycling Units . | . . . . Scanalyzers . | . . . . Garrison Access . | . . . . Data Cores Recovered . | . . . . Used . | . . . . Hacking Detections 1 | . . 1 . Full Trace Events . | . . . . Feedback Events . | . . . . Feedback Blocked . | . . . . Robot Schematics Acquired . | . . . . Robots Built . | . . . . Authchips . | . . . . Time . | . . . . Total Robot Build Rating . | . . . . Part Schematics Acquired . | . . . . Parts Built . | . . . . Authchips . | . . . . Time . | . . . . Total Part Build Rating . | . . . . Parts Repaired . | . . . . Time . | . . . . Parts Recycled . | . . . . Recycled Matter . | . . . . Retrieved Matter . | . . . . Retrieved Components . | . . . . Parts Scanalyzed . | . . . . Part Schematics Acquired . | . . . . Parts Damaged . | . . . . Bothacking | -11 -10 -9 -8 ------------ Run | Yrd Mat Mat Mat Used RIF Installer . | . . . . Robots Hacked . | . . . . Non-combat . | . . . . Combat . | . . . . Robot Hacks Applied . | . . . . Relay Couplers Released . | . . . . Fabnet Peak Effective % . | . . . . Robots Rewired . | . . . . Allies Hacked . | . . . . Hacks Repelled . | . . . . Allies | -11 -10 -9 -8 -------- Run | Yrd Mat Mat Mat Total Allies . | . . . . Largest Group . | . . . . Highest-Rated Group . | . . . . Highest-Rated Ally . | . . . . Total Orders . | . . . . Ally Attacks . | . . . . Total Damage . | . . . . Kills . | . . . . Allies Corrupted . | . . . . Allies Melted . | . . . . Intel | -11 -10 -9 -8 ------- Run | Yrd Mat Mat Mat Robot Analysis Total . | . . . . Derelict Logs Recovered . | . . . . Drone Launches . | . . . . Drone Recoveries . | . . . . Exploration | -11 -10 -9 -8 ------------- Run | Yrd Mat Mat Mat Turns Passed 1271 | 64 322 704 181 Spaces Moved 502 | 48 164 249 41 Core 14 | 13 . . 1 Treads . | . . . . Legs 488 | 35 164 249 40 Wheels . | . . . . Hover . | . . . . Flight . | . . . . Fastest Speed 50 | 50 120 120 120 Average Speed 157 | 109 136 180 154 Slowest Speed 350 | 150 190 330 350 Overloaded Moves . | . . . . Propulsion Burnouts . | . . . . Robots Hopped . | . . . . Cave-ins Triggered . | . . . . Exploration Rate (%) 18 | 4 28 35 6 Regions Visited 3 Branch Regions . Pre-discovered Areas . | . . . . Known Exits Taken . | . . . . Unknown Exits Taken 3 | 1 1 1 . Scrap Searched . | . . . . Spaces Dug . | . . . . Terrain Destroyed . | . . . . Melee . | . . . . Projectile . | . . . . AOE . | . . . . Terrain Rammed . | . . . . Walls Destroyed . | . . . . Machines Disabled . | . . . . Actions | -11 -10 -9 -8 --------- Run | Yrd Mat Mat Mat Total 841 | 59 221 442 119 Wait 204 | . 26 144 34 Move 499 | 47 163 248 41 Hop . | . . . . Pick Up 26 | 8 4 9 5 Fast Attach . | . . . . Attach 23 | 4 3 6 10 Detach . | . . . . Swap 1 | . 1 . . Drop 1 | . 1 . . Fire 83 | . 23 34 26 Melee . | . . . . Ram . | . . . . Kick 4 | . . 1 3 Crush . | . . . . Escape Stasis . | . . . . Rewire . | . . . . Trap . | . . . . Miscellaneous . | . . . . Route ------- -11/Scrapyard -10/Materials -9/Materials -8/Materials History --------- Turn | Location | Event 42 | -11/Scrapyard | Discovered new exit (range 14) 65 | -11/Scrapyard | Entered Materials 284 | -10/Materials | Discovered new exit (range 10) 326 | -10/Materials | Build established: Mutant 387 | -10/Materials | Entered another Materials area 387 | -9/Materials | Evolved 2 slots: Propulsion x2 970 | -9/Materials | Discovered new exit (range 8) 1091 | -9/Materials | Entered another Materials area 1091 | -8/Materials | Evolved 2 slots: Utility x2 1267 | -8/Materials | Core integrity fell below 50% 1272 | -8/Materials | Self-destructed Last Messages --------------- Acquired 69 matter. Aluminum Leg destroyed. Critical hit (Burn: +37). Kicked G-47 Trooper out of the way. G-47 Trooper knocked back. Kicked G-47 Trooper. K-01 Serf collects debris. Kicked G-47 Trooper out of the way. Acquired 42 matter. Aluminum Leg destroyed. Penetrated by Slug. Aluminum Leg destroyed. Lgt. Ion Engine destroyed. Slug penetrates G-47 Trooper. Sml. Laser destroyed. Critical hit (Burn: +37). Penetrated by Slug. G-47 Trooper destroyed. Slug penetrates Wall. Penetrated by Slug. Map ----- +----------------------------------------------------+ | ??????????????????????????????????? | | ??????????????????????????????????? | | ??????????????????????????????????? | | ??????????????????????????????????? | | ??????????????????????????????????? | | ??????????????????????????????????? | | ??????????????????????????????????? | | ??????????????????????????????????? | | ??????????????????????????????????? | | ??????????????????????????????????? | | ??????????????????????????????????? | | ??????????????????????????????????? | | ??????????????????????????????????? | | ??????????????????????????????????? | | ??????????###?????????????????????? | | ?????????? ?????????????????????? | | ??????????" ?????????????????????? | | ??????????" ?????????????????????? | | ????????""" ""????????????????????? | | ???????? """???????????????????? | | ?????????"" S????????????????????? | | ?????????"" ""??????#?????????????? | | ??????????" "?????? #?????????????? | | ?????????? ????? #?????????????? | | ?????????##+##### #?????????????? | | ??????####@% h #?????????????? | | ?????##! g% #?????????????? | | ?????#! ! #?????????????? | | ?????#! ########?????????????? | | ?????#! #????????????????????? | | ?????#! #????????????????????? | | ?????##! #????????????????????? | | ??????#### #????????????????????? | | ?????????# #????????????????????? | | ?????????#^ #????????????????????? | | ?????????#^ ########?????????????? | | ?????????# # #?????????????? | | ?????????# # """ [#?????????????? | | ?????????# # """ #?????????????? | | ?????????# # """ #?????????????? | | ?????????# # """ #?????????????? | | ?????????# # """ !#?????????????? | | ?????????# + #?????????????? | | ?????????# # """ #?????????????? | | ?????????# # """ #?????????????? | | ?????????# # """ #?????????????? | | ?????????# # """ ]#?????????????? | | ?????????# # """ #?????????????? | | ?????????# # #?????????????? | | ?????????# ########?????????????? | +----------------------------------------------------+ Best States ------------- Heat Dissipation 31 Energy Generation 12 Energy Capacity 265 Matter Stores 300 Matter Capacity 300 Sight Range 16 Robot Scan Range 14 Terrain Scan Density 10 Resistance: KI 20 Resistance: TH 20 Resistance: EX 20 Resistance: EM 20 Resistance: I 20 Resistance: S 20 Resistance: P 20 Evasion (%) 55 Offensive Hacking 10 Item Schematics ----------------- None Robot Schematics ------------------ None Fabricated ------------ Nothing Alien Tech Used ----------------- None Achievements -------------- None Challenges ------------ None Game ------ Seed AssaultClaymoresAutogun Manual? 0 Play Time 00:14:33 Cumulative 27.0 hours Start 2024.04.23 @ 20:05:16 End 2024.04.23 @ 20:17:52 Sessions 1 Manual Loads 0 Difficulty Adventurer Special Mode None Game No. 36 Rogue 26 Adventurer 10 Explorer 0 Win Type - Total 0 Types 0/0/0/0/0/0/0/0/0 Lore% 21 Gallery% 30 Achievement% 23 Wizard Run 0 Options --------- Layout 0 ASCII 0 Keyboard 0 Movement Mouse Keybinds 0 Fullscreen 1 Font 18/SmallcapsGlow Map View 76x50 Zoom Use 0% Tactical HUD 0 Map Filters NONE Filters NONE Steam 1 RUN: 69672774-0f33-43fa-8bab-db774ceea0e6